[Event "Titled Tuesday Blitz January 10 Late 2023"]
[White "Boros, Denes"]
[Black "Ismagilov, Damir"]
[WhiteFideId "722340"]
[BlackFideId "34199982"]
[WhiteElo "2406"]
[BlackElo "2156"]
[Result "1-0"]
[Round "07"]
[TimeControl "180+2"]
[Date "2023.01.10"]
[WhiteClock "0:01:15"]
[BlackClock "0:00:04"]

1. e4 {[%clk 0:00:00]}  d6 {[%clk 0:00:00]} 2. f4 {[%clk 0:03:00]}  g6 {[%clk 0:02:59]} 3. Nc3 {[%clk 0:03:00]}  Bg7 {[%clk 0:02:57]} 4. Nf3 {[%clk 0:02:59]}  c5 {[%clk 0:02:58]} 5. Be2 {[%clk 0:03:00]}  Nc6 {[%clk 0:02:56]} 6. O-O {[%clk 0:03:00]}  e6 {[%clk 0:02:55]} 7. d3 {[%clk 0:03:00]}  Nge7 {[%clk 0:02:40]} 8. Qe1 {[%clk 0:03:00]}  O-O {[%clk 0:02:41]} 9. Kh1 {[%clk 0:02:58]}  d5 {[%clk 0:02:41]} 10. Bd2 {[%clk 0:02:57]}  dxe4 {[%clk 0:02:37]} 11. Nxe4 {[%clk 0:02:52]}  b6 {[%clk 0:02:27]} 12. Bc3 {[%clk 0:02:50]}  Nd4 {[%clk 0:02:20]} 13. Rc1 {[%clk 0:02:50]}  Bb7 {[%clk 0:02:19]} 14. Bd1 {[%clk 0:02:43]}  Nd5 {[%clk 0:02:17]} 15. Ne5 {[%clk 0:02:42]}  Nxc3 {[%clk 0:02:09]} 16. bxc3 {[%clk 0:02:38]}  Nf5 {[%clk 0:02:05]} 17. Bf3 {[%clk 0:02:39]}  Rb8 {[%clk 0:01:57]} 18. Qf2 {[%clk 0:02:39]}  Nd6 {[%clk 0:01:47]} 19. Rce1 {[%clk 0:02:37]}  Qc7 {[%clk 0:01:46]} 20. Ng5 {[%clk 0:02:26]}  h6 {[%clk 0:01:29]} 21. Nh3 {[%clk 0:02:20]}  c4 {[%clk 0:01:23]} 22. Rc1 {[%clk 0:02:14]}  Nb5 {[%clk 0:01:09]} 23. Qd2 {[%clk 0:02:04]}  Rbd8 {[%clk 0:01:01]} 24. d4 {[%clk 0:01:56]}  Bxf3 {[%clk 0:00:50]} 25. Rxf3 {[%clk 0:01:54]}  Bxe5 {[%clk 0:00:46]} 26. fxe5 {[%clk 0:01:53]}  Qxe5 {[%clk 0:00:45]} 27. Qxh6 {[%clk 0:01:54]}  Qg7 {[%clk 0:00:45]} 28. Qh4 {[%clk 0:01:52]}  Rd5 {[%clk 0:00:46]} 29. Rcf1 {[%clk 0:01:47]}  Rf5 {[%clk 0:00:45]} 30. Ng5 {[%clk 0:01:43]}  Nxc3 {[%clk 0:00:38]} 31. h3 {[%clk 0:01:42]}  Nd5 {[%clk 0:00:30]} 32. Kh2 {[%clk 0:01:42]}  Ne3 {[%clk 0:00:29]} 33. R1f2 {[%clk 0:01:33]}  Rxf3 {[%clk 0:00:25]} 34. Nxf3 {[%clk 0:01:24]}  Nf5 {[%clk 0:00:25]} 35. Qf4 {[%clk 0:01:25]}  Rd8 {[%clk 0:00:25]} 36. c3 {[%clk 0:01:22]}  Qf8 {[%clk 0:00:25]} 37. g4 {[%clk 0:01:22]}  Qd6 {[%clk 0:00:25]} 38. Ne5 {[%clk 0:01:22]}  f6 {[%clk 0:00:26]} 39. gxf5 {[%clk 0:01:22]}  fxe5 {[%clk 0:00:15]} 40. dxe5 {[%clk 0:01:22]}  Qd3 {[%clk 0:00:15]} 41. Qg5 {[%clk 0:01:23]}  exf5 {[%clk 0:00:09]} 42. Qxg6+ {[%clk 0:01:18]}  Kf8 {[%clk 0:00:04]} 43. Rxf5+ {[%clk 0:01:17]}  Ke7 {[%clk 0:00:04]} 44. Rf7+ {[%clk 0:01:15]}  Ke8 {[%clk 0:00:04]} 45. Qe6# {[%clk 0:01:15]} 1-0


[Site "https://www.chess.com"]

[Event "Titled Tuesday Blitz January 10 Late 2023"]
[White "Rastbod, Ali"]
[Black "Putnam, Liam"]
[WhiteFideId "12567477"]
[BlackFideId "30938279"]
[WhiteElo "2318"]
[BlackElo "2285"]
[Result "0-1"]
[Round "07"]
[TimeControl "180+2"]
[Date "2023.01.10"]
[WhiteClock "0:00:02"]
[BlackClock "0:00:08"]

1. e4 {[%clk 0:00:00]}  e5 {[%clk 0:00:00]} 2. Nf3 {[%clk 0:03:00]}  Nc6 {[%clk 0:02:50]} 3. Bc4 {[%clk 0:02:59]}  Bc5 {[%clk 0:02:50]} 4. c3 {[%clk 0:02:55]}  Nf6 {[%clk 0:02:49]} 5. d3 {[%clk 0:02:55]}  a6 {[%clk 0:02:50]} 6. O-O {[%clk 0:02:55]}  d6 {[%clk 0:02:50]} 7. d4 {[%clk 0:02:48]}  Ba7 {[%clk 0:02:50]} 8. dxe5 {[%clk 0:02:47]}  Nxe5 {[%clk 0:02:10]} 9. Nxe5 {[%clk 0:02:01]}  dxe5 {[%clk 0:01:47]} 10. Qxd8+ {[%clk 0:01:59]}  Kxd8 {[%clk 0:01:48]} 11. Bxf7 {[%clk 0:01:59]}  Ke7 {[%clk 0:01:48]} 12. Bb3 {[%clk 0:01:59]}  Nxe4 {[%clk 0:01:47]} 13. Nd2 {[%clk 0:01:46]}  Nc5 {[%clk 0:01:47]} 14. Bc2 {[%clk 0:01:33]}  Be6 {[%clk 0:01:32]} 15. Re1 {[%clk 0:01:08]}  Rhf8 {[%clk 0:01:15]} 16. Nf3 {[%clk 0:01:02]}  Nd7 {[%clk 0:01:06]} 17. Bg5+ {[%clk 0:00:54]}  Kf7 {[%clk 0:00:24]} 18. Nxe5+ {[%clk 0:00:47]}  Nxe5 {[%clk 0:00:23]} 19. Rxe5 {[%clk 0:00:42]}  h6 {[%clk 0:00:24]} 20. Be3 {[%clk 0:00:43]}  Bxe3 {[%clk 0:00:24]} 21. Rxe3 {[%clk 0:00:40]}  Rfe8 {[%clk 0:00:24]} 22. Rae1 {[%clk 0:00:39]}  Kf6 {[%clk 0:00:18]} 23. Bb3 {[%clk 0:00:36]}  Bd7 {[%clk 0:00:16]} 24. Rxe8 {[%clk 0:00:31]}  Rxe8 {[%clk 0:00:17]} 25. Rxe8 {[%clk 0:00:30]}  Bxe8 {[%clk 0:00:16]} 26. f4 {[%clk 0:00:30]}  Kf5 {[%clk 0:00:17]} 27. g3 {[%clk 0:00:30]}  Ke4 {[%clk 0:00:17]} 28. Kf2 {[%clk 0:00:29]}  Kd3 {[%clk 0:00:14]} 29. Ke1 {[%clk 0:00:23]}  Ke3 {[%clk 0:00:14]} 30. Bd5 {[%clk 0:00:23]}  b5 {[%clk 0:00:13]} 31. Bb7 {[%clk 0:00:21]}  a5 {[%clk 0:00:12]} 32. a3 {[%clk 0:00:13]}  c5 {[%clk 0:00:11]} 33. Bd5 {[%clk 0:00:12]}  Bh5 {[%clk 0:00:11]} 34. Bc6 {[%clk 0:00:11]}  Be2 {[%clk 0:00:09]} 35. f5 {[%clk 0:00:09]}  Bd3 {[%clk 0:00:09]} 36. g4 {[%clk 0:00:05]}  Be2 {[%clk 0:00:08]} 37. h3 {[%clk 0:00:05]}  b4 {[%clk 0:00:07]} 38. cxb4 {[%clk 0:00:05]}  cxb4 {[%clk 0:00:08]} 39. axb4 {[%clk 0:00:04]}  axb4 {[%clk 0:00:08]} 40. Bd7 {[%clk 0:00:05]}  Bd3 {[%clk 0:00:09]} 41. h4 {[%clk 0:00:05]}  Kf4 {[%clk 0:00:06]} 42. Kd2 {[%clk 0:00:05]}  Be4 {[%clk 0:00:04]} 43. Ke2 {[%clk 0:00:03]}  Bf3+ {[%clk 0:00:05]} 44. Kf2 {[%clk 0:00:03]}  Bxg4 {[%clk 0:00:05]} 45. f6 {[%clk 0:00:03]}  gxf6 {[%clk 0:00:05]} 46. Be8 {[%clk 0:00:03]}  Bf3 {[%clk 0:00:06]} 47. Bf7 {[%clk 0:00:02]}  f5 {[%clk 0:00:06]} 48. Be8 {[%clk 0:00:01]}  Be4 {[%clk 0:00:06]} 49. Bf7 {[%clk 0:00:02]}  Ke5 {[%clk 0:00:07]} 50. Be8 {[%clk 0:00:02]}  f4 {[%clk 0:00:07]} 51. Ke2 {[%clk 0:00:02]}  Kd4 {[%clk 0:00:08]} 52. Kf2 {[%clk 0:00:02]}  Kd3 {[%clk 0:00:08]} 53. Bc6 {[%clk 0:00:02]}  Bxc6 {[%clk 0:00:08]} 0-1


[Site "https://www.chess.com"]

[Event "Titled Tuesday Blitz January 10 Late 2023"]
[White "Yuan, Qingyu"]
[Black "Djokic, Mihailo"]
[WhiteFideId "8609772"]
[BlackFideId "976440"]
[WhiteElo "2373"]
[BlackElo "2192"]
[Result "1-0"]
[Round "07"]
[TimeControl "180+2"]
[Date "2023.01.10"]
[WhiteClock "0:00:16"]
[BlackClock "0:00:39"]

1. e4 {[%clk 0:00:00]}  c5 {[%clk 0:00:00]} 2. Nf3 {[%clk 0:03:00]}  d6 {[%clk 0:02:59]} 3. Bb5+ {[%clk 0:03:00]}  Bd7 {[%clk 0:03:00]} 4. Bxd7+ {[%clk 0:03:01]}  Qxd7 {[%clk 0:03:00]} 5. c4 {[%clk 0:03:01]}  Nc6 {[%clk 0:03:01]} 6. Nc3 {[%clk 0:03:01]}  g6 {[%clk 0:03:01]} 7. d4 {[%clk 0:03:02]}  cxd4 {[%clk 0:03:02]} 8. Nxd4 {[%clk 0:03:02]}  Bg7 {[%clk 0:03:03]} 9. Be3 {[%clk 0:03:03]}  Nf6 {[%clk 0:03:04]} 10. f3 {[%clk 0:03:03]}  O-O {[%clk 0:03:04]} 11. O-O {[%clk 0:03:04]}  Rfd8 {[%clk 0:03:04]} 12. Qd2 {[%clk 0:03:04]}  e6 {[%clk 0:03:05]} 13. Rad1 {[%clk 0:02:54]}  d5 {[%clk 0:03:05]} 14. cxd5 {[%clk 0:02:53]}  exd5 {[%clk 0:03:05]} 15. Nxc6 {[%clk 0:02:48]}  bxc6 {[%clk 0:03:06]} 16. e5 {[%clk 0:02:48]}  Ne8 {[%clk 0:03:06]} 17. f4 {[%clk 0:02:49]}  f6 {[%clk 0:03:01]} 18. Bc5 {[%clk 0:02:49]}  fxe5 {[%clk 0:02:56]} 19. fxe5 {[%clk 0:02:41]}  Qe6 {[%clk 0:02:36]} 20. Qg5 {[%clk 0:02:39]}  Qxe5 {[%clk 0:02:37]} 21. Rf8+ {[%clk 0:02:12]}  Bxf8 {[%clk 0:02:27]} 22. Qxe5 {[%clk 0:02:04]}  Bxc5+ {[%clk 0:02:24]} 23. Kh1 {[%clk 0:02:05]}  Ng7 {[%clk 0:02:25]} 24. h3 {[%clk 0:02:05]}  Bd6 {[%clk 0:02:20]} 25. Qf6 {[%clk 0:01:51]}  Nh5 {[%clk 0:02:17]} 26. Qe6+ {[%clk 0:01:43]}  Kg7 {[%clk 0:02:14]} 27. Ne2 {[%clk 0:01:43]}  Nf6 {[%clk 0:02:13]} 28. Rf1 {[%clk 0:01:21]}  Ne4 {[%clk 0:01:59]} 29. Rf7+ {[%clk 0:01:13]}  Kh6 {[%clk 0:02:00]} 30. Qg4 {[%clk 0:01:12]}  Be7 {[%clk 0:01:50]} 31. Ng3 {[%clk 0:01:05]}  Rf8 {[%clk 0:01:50]} 32. Rxf8 {[%clk 0:00:46]}  Rxf8 {[%clk 0:01:41]} 33. Nxe4 {[%clk 0:00:32]}  dxe4 {[%clk 0:01:33]} 34. Qxe4 {[%clk 0:00:31]}  Rf1+ {[%clk 0:01:30]} 35. Kh2 {[%clk 0:00:28]}  Bd6+ {[%clk 0:01:29]} 36. g3 {[%clk 0:00:29]}  Rf6 {[%clk 0:01:30]} 37. Qe3+ {[%clk 0:00:29]}  Kg7 {[%clk 0:01:09]} 38. Qxa7+ {[%clk 0:00:24]}  Kg8 {[%clk 0:01:08]} 39. Kg2 {[%clk 0:00:25]}  Be5 {[%clk 0:01:04]} 40. b3 {[%clk 0:00:20]}  h5 {[%clk 0:01:00]} 41. a4 {[%clk 0:00:18]}  Rd6 {[%clk 0:00:59]} 42. Qe3 {[%clk 0:00:17]}  Bg7 {[%clk 0:00:53]} 43. a5 {[%clk 0:00:17]}  Bd4 {[%clk 0:00:51]} 44. Qe8+ {[%clk 0:00:16]}  Kh7 {[%clk 0:00:39]} 45. Qe7+ {[%clk 0:00:16]} 1-0


[Site "https://www.chess.com"]

[Event "Titled Tuesday Blitz January 10 Late 2023"]
[White "Fiorito, Joaquin"]
[Black "Mahdavi, Reza"]
[WhiteFideId "180173"]
[BlackFideId "12595926"]
[WhiteElo "2405"]
[BlackElo "2339"]
[Result "1-0"]
[Round "07"]
[TimeControl "180+2"]
[Date "2023.01.10"]
[WhiteClock "0:00:37"]
[BlackClock "0:00:10"]

1. d4 {[%clk 0:00:00]}  g6 {[%clk 0:00:00]} 2. Nc3 {[%clk 0:03:00]}  Bg7 {[%clk 0:02:57]} 3. e4 {[%clk 0:03:01]}  d6 {[%clk 0:02:56]} 4. Be3 {[%clk 0:03:01]}  a6 {[%clk 0:02:57]} 5. f3 {[%clk 0:03:01]}  b5 {[%clk 0:02:57]} 6. h4 {[%clk 0:02:58]}  h6 {[%clk 0:02:57]} 7. Qd2 {[%clk 0:02:58]}  Bb7 {[%clk 0:02:57]} 8. a4 {[%clk 0:02:57]}  b4 {[%clk 0:02:58]} 9. Nd1 {[%clk 0:02:57]}  a5 {[%clk 0:02:57]} 10. c3 {[%clk 0:02:57]}  Na6 {[%clk 0:02:57]} 11. Bb5+ {[%clk 0:02:57]}  c6 {[%clk 0:02:48]} 12. Bc4 {[%clk 0:02:37]}  Nf6 {[%clk 0:02:47]} 13. Ne2 {[%clk 0:02:30]}  e5 {[%clk 0:02:46]} 14. dxe5 {[%clk 0:02:24]}  dxe5 {[%clk 0:02:43]} 15. Qxd8+ {[%clk 0:02:22]}  Kxd8 {[%clk 0:02:44]} 16. Bb6+ {[%clk 0:02:22]}  Ke7 {[%clk 0:02:27]} 17. Bxa5 {[%clk 0:02:22]}  c5 {[%clk 0:02:25]} 18. Bxa6 {[%clk 0:02:20]}  Bxa6 {[%clk 0:02:22]} 19. cxb4 {[%clk 0:02:05]}  Bxe2 {[%clk 0:02:02]} 20. Kxe2 {[%clk 0:02:05]}  Rhb8 {[%clk 0:02:03]} 21. Ne3 {[%clk 0:02:05]}  Rb7 {[%clk 0:02:03]} 22. Nc4 {[%clk 0:02:01]}  cxb4 {[%clk 0:01:54]} 23. Rhd1 {[%clk 0:01:57]}  Nd7 {[%clk 0:01:45]} 24. Rd5 {[%clk 0:01:44]}  Nf8 {[%clk 0:01:34]} 25. Bb6 {[%clk 0:01:42]}  Ne6 {[%clk 0:01:30]} 26. Be3 {[%clk 0:01:26]}  Rc8 {[%clk 0:01:11]} 27. b3 {[%clk 0:01:27]}  Rxc4 {[%clk 0:00:46]} 28. bxc4 {[%clk 0:01:26]}  Rc7 {[%clk 0:00:41]} 29. c5 {[%clk 0:01:27]}  Kf6 {[%clk 0:00:42]} 30. Rb1 {[%clk 0:01:21]}  Rb7 {[%clk 0:00:31]} 31. a5 {[%clk 0:01:20]}  Bf8 {[%clk 0:00:24]} 32. Kd3 {[%clk 0:01:16]}  Rb5 {[%clk 0:00:19]} 33. Kc4 {[%clk 0:01:09]}  Rxa5 {[%clk 0:00:18]} 34. Rxb4 {[%clk 0:00:57]}  Ra3 {[%clk 0:00:18]} 35. Rb3 {[%clk 0:00:51]}  Ra2 {[%clk 0:00:18]} 36. g4 {[%clk 0:00:49]}  Rc2+ {[%clk 0:00:17]} 37. Kd3 {[%clk 0:00:47]}  Rh2 {[%clk 0:00:16]} 38. g5+ {[%clk 0:00:45]}  hxg5 {[%clk 0:00:15]} 39. hxg5+ {[%clk 0:00:45]}  Kg7 {[%clk 0:00:15]} 40. c6 {[%clk 0:00:46]}  Rh1 {[%clk 0:00:15]} 41. Rxe5 {[%clk 0:00:41]}  Rd1+ {[%clk 0:00:11]} 42. Kc2 {[%clk 0:00:40]}  Rf1 {[%clk 0:00:10]} 43. Rxe6 {[%clk 0:00:37]} 1-0


[Site "https://www.chess.com"]

[Event "Titled Tuesday Blitz January 10 Late 2023"]
[White "Denishev, Marat"]
[Black "Djordjevic, Vuk"]
[WhiteFideId "24131563"]
[BlackFideId "902098"]
[WhiteElo "2255"]
[BlackElo "2375"]
[Result "0-1"]
[Round "07"]
[TimeControl "180+2"]
[Date "2023.01.10"]
[WhiteClock "0:00:06"]
[BlackClock "0:00:10"]

1. e4 {[%clk 0:00:00]}  d5 {[%clk 0:00:00]} 2. exd5 {[%clk 0:03:00]}  Qxd5 {[%clk 0:03:00]} 3. Nc3 {[%clk 0:03:00]}  Qd6 {[%clk 0:03:01]} 4. Nf3 {[%clk 0:02:59]}  Nf6 {[%clk 0:03:01]} 5. d4 {[%clk 0:02:56]}  c6 {[%clk 0:03:02]} 6. Ne5 {[%clk 0:02:56]}  Nbd7 {[%clk 0:03:02]} 7. Nc4 {[%clk 0:02:56]}  Qc7 {[%clk 0:03:01]} 8. g3 {[%clk 0:02:54]}  Nb6 {[%clk 0:03:01]} 9. Bf4 {[%clk 0:02:54]}  Qd8 {[%clk 0:03:00]} 10. Ne5 {[%clk 0:02:53]}  Nbd5 {[%clk 0:03:00]} 11. Qf3 {[%clk 0:02:42]}  Bf5 {[%clk 0:02:56]} 12. Bd3 {[%clk 0:02:33]}  Bxd3 {[%clk 0:02:41]} 13. Nxd3 {[%clk 0:02:18]}  Nxf4 {[%clk 0:02:34]} 14. Qxf4 {[%clk 0:02:18]}  e6 {[%clk 0:02:32]} 15. O-O-O {[%clk 0:02:16]}  Nd5 {[%clk 0:02:29]} 16. Nxd5 {[%clk 0:02:15]}  Qxd5 {[%clk 0:02:22]} 17. Kb1 {[%clk 0:02:14]}  Bd6 {[%clk 0:02:23]} 18. Qg4 {[%clk 0:02:10]}  O-O {[%clk 0:02:21]} 19. Rhe1 {[%clk 0:02:08]}  Qb5 {[%clk 0:02:18]} 20. h4 {[%clk 0:02:07]}  a5 {[%clk 0:01:50]} 21. h5 {[%clk 0:01:55]}  h6 {[%clk 0:01:48]} 22. Qe2 {[%clk 0:01:55]}  Rfd8 {[%clk 0:01:48]} 23. Ka1 {[%clk 0:01:43]}  a4 {[%clk 0:01:04]} 24. a3 {[%clk 0:00:51]}  Ra5 {[%clk 0:00:59]} 25. g4 {[%clk 0:00:51]}  Be7 {[%clk 0:00:55]} 26. c3 {[%clk 0:00:46]}  Qb3 {[%clk 0:00:51]} 27. f4 {[%clk 0:00:42]}  Qc4 {[%clk 0:00:39]} 28. Ne5 {[%clk 0:00:38]}  Qxe2 {[%clk 0:00:12]} 29. Rxe2 {[%clk 0:00:33]}  Rad5 {[%clk 0:00:12]} 30. f5 {[%clk 0:00:34]}  exf5 {[%clk 0:00:12]} 31. gxf5 {[%clk 0:00:20]}  Bf6 {[%clk 0:00:08]} 32. Nc4 {[%clk 0:00:21]}  Rxf5 {[%clk 0:00:07]} 33. Rh1 {[%clk 0:00:21]}  b5 {[%clk 0:00:07]} 34. Ne3 {[%clk 0:00:17]}  Rg5 {[%clk 0:00:07]} 35. Rf2 {[%clk 0:00:16]}  Re8 {[%clk 0:00:04]} 36. Nf5 {[%clk 0:00:16]}  Kh7 {[%clk 0:00:04]} 37. Nd6 {[%clk 0:00:16]}  Re7 {[%clk 0:00:04]} 38. Nc8 {[%clk 0:00:16]}  Rd7 {[%clk 0:00:05]} 39. Nb6 {[%clk 0:00:16]}  Rc7 {[%clk 0:00:04]} 40. Re2 {[%clk 0:00:17]}  c5 {[%clk 0:00:05]} 41. d5 {[%clk 0:00:14]}  Rb7 {[%clk 0:00:05]} 42. Nc8 {[%clk 0:00:13]}  Rxd5 {[%clk 0:00:05]} 43. Re8 {[%clk 0:00:13]}  Rd8 {[%clk 0:00:05]} 44. Rhe1 {[%clk 0:00:12]}  Rxe8 {[%clk 0:00:04]} 45. Rxe8 {[%clk 0:00:13]}  Rb8 {[%clk 0:00:04]} 46. Kb1 {[%clk 0:00:13]}  b4 {[%clk 0:00:05]} 47. axb4 {[%clk 0:00:12]}  cxb4 {[%clk 0:00:05]} 48. cxb4 {[%clk 0:00:12]}  Rxb4 {[%clk 0:00:06]} 49. Nd6 {[%clk 0:00:13]}  Rxb2+ {[%clk 0:00:06]} 50. Kc1 {[%clk 0:00:14]}  Rb6 {[%clk 0:00:06]} 51. Nxf7 {[%clk 0:00:14]}  g6 {[%clk 0:00:02]} 52. hxg6+ {[%clk 0:00:15]}  Kxg6 {[%clk 0:00:03]} 53. Nh8+ {[%clk 0:00:07]}  Bxh8 {[%clk 0:00:04]} 54. Rxh8 {[%clk 0:00:04]}  Ra6 {[%clk 0:00:03]} 55. Kb2 {[%clk 0:00:05]}  a3+ {[%clk 0:00:04]} 56. Ka2 {[%clk 0:00:05]}  h5 {[%clk 0:00:04]} 57. Rg8+ {[%clk 0:00:06]}  Kf5 {[%clk 0:00:05]} 58. Rf8+ {[%clk 0:00:06]}  Kg4 {[%clk 0:00:05]} 59. Rg8+ {[%clk 0:00:07]}  Kh3 {[%clk 0:00:05]} 60. Rh8 {[%clk 0:00:07]}  h4 {[%clk 0:00:05]} 61. Rh7 {[%clk 0:00:07]}  Kg3 {[%clk 0:00:06]} 62. Rh8 {[%clk 0:00:08]}  h3 {[%clk 0:00:06]} 63. Rg8+ {[%clk 0:00:08]}  Kh2 {[%clk 0:00:06]} 64. Ka1 {[%clk 0:00:09]}  Kh1 {[%clk 0:00:06]} 65. Ka2 {[%clk 0:00:09]}  h2 {[%clk 0:00:06]} 66. Rg3 {[%clk 0:00:09]}  Ra7 {[%clk 0:00:06]} 67. Ka1 {[%clk 0:00:08]}  Re7 {[%clk 0:00:06]} 68. Ka2 {[%clk 0:00:08]}  Re2+ {[%clk 0:00:06]} 69. Kxa3 {[%clk 0:00:08]}  Rg2 {[%clk 0:00:07]} 70. Rd3 {[%clk 0:00:08]}  Kg1 {[%clk 0:00:07]} 71. Rd1+ {[%clk 0:00:05]}  Kf2 {[%clk 0:00:07]} 72. Rd2+ {[%clk 0:00:06]}  Kg3 {[%clk 0:00:08]} 73. Rd3+ {[%clk 0:00:06]}  Kh4 {[%clk 0:00:08]} 74. Rd4+ {[%clk 0:00:07]}  Kh3 {[%clk 0:00:08]} 75. Rd8 {[%clk 0:00:07]}  Rg3+ {[%clk 0:00:08]} 76. Kb4 {[%clk 0:00:06]}  h1=Q {[%clk 0:00:09]} 77. Rh8+ {[%clk 0:00:05]}  Kg2 {[%clk 0:00:09]} 78. Rxh1 {[%clk 0:00:06]}  Kxh1 {[%clk 0:00:10]} 0-1


[Site "https://www.chess.com"]

[Event "Titled Tuesday Blitz January 10 Late 2023"]
[White "Nazari, Arad"]
[Black "Suvorov, Alexander"]
[WhiteFideId "12577324"]
[BlackFideId "12977063"]
[WhiteElo "2367"]
[BlackElo "2338"]
[Result "1-0"]
[Round "07"]
[TimeControl "180+2"]
[Date "2023.01.10"]
[WhiteClock "0:00:11"]
[BlackClock "0:00:06"]

1. e4 {[%clk 0:00:00]}  d6 {[%clk 0:00:00]} 2. d4 {[%clk 0:03:00]}  e5 {[%clk 0:02:57]} 3. Nf3 {[%clk 0:03:00]}  Nd7 {[%clk 0:02:57]} 4. Nc3 {[%clk 0:02:58]}  Ngf6 {[%clk 0:02:56]} 5. Bc4 {[%clk 0:02:55]}  Be7 {[%clk 0:02:56]} 6. a4 {[%clk 0:02:53]}  c6 {[%clk 0:02:57]} 7. h3 {[%clk 0:02:53]}  h6 {[%clk 0:02:55]} 8. O-O {[%clk 0:02:50]}  Qc7 {[%clk 0:02:53]} 9. Nh4 {[%clk 0:02:50]}  g6 {[%clk 0:02:52]} 10. Nf3 {[%clk 0:02:29]}  Nf8 {[%clk 0:02:22]} 11. b4 {[%clk 0:02:23]}  g5 {[%clk 0:02:14]} 12. Qd3 {[%clk 0:02:14]}  Ng6 {[%clk 0:02:10]} 13. b5 {[%clk 0:01:53]}  Nh5 {[%clk 0:02:08]} 14. Ba3 {[%clk 0:01:50]}  Nhf4 {[%clk 0:01:56]} 15. Qe3 {[%clk 0:01:25]}  g4 {[%clk 0:01:52]} 16. hxg4 {[%clk 0:01:26]}  Bxg4 {[%clk 0:01:50]} 17. dxe5 {[%clk 0:01:22]}  dxe5 {[%clk 0:01:51]} 18. bxc6 {[%clk 0:01:23]}  bxc6 {[%clk 0:01:48]} 19. Nh2 {[%clk 0:01:13]}  h5 {[%clk 0:01:45]} 20. g3 {[%clk 0:01:03]}  Be6 {[%clk 0:01:39]} 21. Bxe6 {[%clk 0:00:49]}  Nxe6 {[%clk 0:01:15]} 22. Bxe7 {[%clk 0:00:45]}  Qxe7 {[%clk 0:01:16]} 23. Ne2 {[%clk 0:00:38]}  h4 {[%clk 0:01:17]} 24. Ng4 {[%clk 0:00:31]}  Qg5 {[%clk 0:01:17]} 25. Qxg5 {[%clk 0:00:23]}  Nxg5 {[%clk 0:00:58]} 26. Nc3 {[%clk 0:00:21]}  Ke7 {[%clk 0:00:59]} 27. Rab1 {[%clk 0:00:16]}  Rab8 {[%clk 0:00:53]} 28. Ne3 {[%clk 0:00:16]}  h3 {[%clk 0:00:47]} 29. Kh1 {[%clk 0:00:17]}  Nf3 {[%clk 0:00:41]} 30. Nf5+ {[%clk 0:00:15]}  Kf6 {[%clk 0:00:39]} 31. Rfd1 {[%clk 0:00:13]}  Rxb1 {[%clk 0:00:37]} 32. Rxb1 {[%clk 0:00:12]}  Rd8 {[%clk 0:00:37]} 33. Nd1 {[%clk 0:00:12]}  Rd2 {[%clk 0:00:37]} 34. Nde3 {[%clk 0:00:12]}  Kg5 {[%clk 0:00:34]} 35. Rf1 {[%clk 0:00:13]}  Nf8 {[%clk 0:00:29]} 36. Ne7 {[%clk 0:00:13]}  c5 {[%clk 0:00:24]} 37. N7d5 {[%clk 0:00:13]}  Ne6 {[%clk 0:00:21]} 38. Nc3 {[%clk 0:00:10]}  Ned4 {[%clk 0:00:22]} 39. Nb1 {[%clk 0:00:05]}  Re2 {[%clk 0:00:22]} 40. Nc3 {[%clk 0:00:05]}  Rd2 {[%clk 0:00:20]} 41. Nb1 {[%clk 0:00:05]}  Re2 {[%clk 0:00:19]} 42. Nc3 {[%clk 0:00:05]}  Re1 {[%clk 0:00:18]} 43. Rxe1 {[%clk 0:00:06]}  Nxe1 {[%clk 0:00:15]} 44. Kh2 {[%clk 0:00:06]}  Ndxc2 {[%clk 0:00:16]} 45. Nxc2 {[%clk 0:00:07]}  Nxc2 {[%clk 0:00:11]} 46. Kxh3 {[%clk 0:00:08]}  Nd4 {[%clk 0:00:12]} 47. Nd5 {[%clk 0:00:08]}  f5 {[%clk 0:00:09]} 48. f4+ {[%clk 0:00:09]}  exf4 {[%clk 0:00:09]} 49. gxf4+ {[%clk 0:00:09]}  Kg6 {[%clk 0:00:07]} 50. e5 {[%clk 0:00:10]}  Ne2 {[%clk 0:00:07]} 51. Kg2 {[%clk 0:00:10]}  c4 {[%clk 0:00:08]} 52. Kf3 {[%clk 0:00:09]}  Nd4+ {[%clk 0:00:08]} 53. Ke3 {[%clk 0:00:09]}  Ne6 {[%clk 0:00:08]} 54. Ne7+ {[%clk 0:00:09]}  Kh5 {[%clk 0:00:08]} 55. Nxf5 {[%clk 0:00:10]}  Kg4 {[%clk 0:00:08]} 56. Nh6+ {[%clk 0:00:10]}  Kg3 {[%clk 0:00:09]} 57. f5 {[%clk 0:00:11]}  Ng5 {[%clk 0:00:09]} 58. e6 {[%clk 0:00:11]}  Nh7 {[%clk 0:00:10]} 59. Ng8 {[%clk 0:00:10]}  c3 {[%clk 0:00:08]} 60. e7 {[%clk 0:00:10]}  c2 {[%clk 0:00:07]} 61. Kd2 {[%clk 0:00:10]}  c1=Q+ {[%clk 0:00:06]} 62. Kxc1 {[%clk 0:00:11]} 1-0


[Site "https://www.chess.com"]

[Event "Titled Tuesday Blitz January 10 Late 2023"]
[White "Wieczorek, Oskar"]
[Black "Aggelis, Nikolaos"]
[WhiteFideId "1133950"]
[BlackFideId "4213220"]
[WhiteElo "2512"]
[BlackElo "2270"]
[Result "1-0"]
[Round "07"]
[TimeControl "180+2"]
[Date "2023.01.10"]
[WhiteClock "0:00:39"]
[BlackClock "0:00:11"]

1. e4 {[%clk 0:00:00]}  c6 {[%clk 0:00:00]} 2. d4 {[%clk 0:03:00]}  d5 {[%clk 0:02:47]} 3. Nd2 {[%clk 0:03:00]}  dxe4 {[%clk 0:02:47]} 4. Nxe4 {[%clk 0:03:01]}  Nf6 {[%clk 0:02:47]} 5. Nxf6+ {[%clk 0:03:02]}  exf6 {[%clk 0:02:46]} 6. Be2 {[%clk 0:03:02]}  Bd6 {[%clk 0:02:47]} 7. Bf3 {[%clk 0:03:03]}  h5 {[%clk 0:02:43]} 8. Ne2 {[%clk 0:03:03]}  h4 {[%clk 0:02:37]} 9. h3 {[%clk 0:03:01]}  O-O {[%clk 0:02:32]} 10. O-O {[%clk 0:02:59]}  Bf5 {[%clk 0:02:31]} 11. Bf4 {[%clk 0:02:59]}  Re8 {[%clk 0:02:06]} 12. Qd2 {[%clk 0:02:53]}  Qc7 {[%clk 0:01:59]} 13. Bxd6 {[%clk 0:02:43]}  Qxd6 {[%clk 0:01:55]} 14. Rfe1 {[%clk 0:02:21]}  Nd7 {[%clk 0:01:56]} 15. c4 {[%clk 0:02:13]}  Nf8 {[%clk 0:01:56]} 16. Nc3 {[%clk 0:02:11]}  Rxe1+ {[%clk 0:01:30]} 17. Rxe1 {[%clk 0:01:55]}  Rd8 {[%clk 0:01:29]} 18. d5 {[%clk 0:01:54]}  a6 {[%clk 0:01:30]} 19. Qe3 {[%clk 0:01:54]}  c5 {[%clk 0:01:15]} 20. Qe7 {[%clk 0:01:41]}  Qxe7 {[%clk 0:01:04]} 21. Rxe7 {[%clk 0:01:38]}  Bd7 {[%clk 0:00:46]} 22. Be4 {[%clk 0:01:37]}  Ng6 {[%clk 0:00:46]} 23. Bxg6 {[%clk 0:01:07]}  fxg6 {[%clk 0:00:45]} 24. f4 {[%clk 0:01:07]}  Kf8 {[%clk 0:00:45]} 25. Re1 {[%clk 0:00:44]}  b5 {[%clk 0:00:45]} 26. b3 {[%clk 0:00:44]}  Bf5 {[%clk 0:00:29]} 27. Rd1 {[%clk 0:00:44]}  b4 {[%clk 0:00:28]} 28. Na4 {[%clk 0:00:39]}  Rc8 {[%clk 0:00:16]} 29. d6 {[%clk 0:00:39]}  Ke8 {[%clk 0:00:16]} 30. Rd5 {[%clk 0:00:40]}  Bb1 {[%clk 0:00:13]} 31. d7+ {[%clk 0:00:38]}  Kd8 {[%clk 0:00:09]} 32. dxc8=Q+ {[%clk 0:00:37]}  Kxc8 {[%clk 0:00:09]} 33. Rxc5+ {[%clk 0:00:38]}  Kb7 {[%clk 0:00:10]} 34. Ra5 {[%clk 0:00:38]}  Bxa2 {[%clk 0:00:11]} 35. Nc5+ {[%clk 0:00:38]}  Kb6 {[%clk 0:00:11]} 36. Rxa2 {[%clk 0:00:39]}  Kxc5 {[%clk 0:00:11]} 37. Rxa6 {[%clk 0:00:39]} 1-0


[Site "https://www.chess.com"]